[Event "FIDE World Cup O10-A 2024"]
[Site "Batumi"]
[Date "2024.06.26"]
[Round "4.1"]
[White "Vyom Malhotra"]
[Black "Bolashakov, Nurali"]
[Result "1-0"]
[ECO "B23"]
[WhiteElo "1803"]
[BlackElo "1843"]
[Annotator "NA RC"]
[PlyCount "93"]
[EventDate "2024.06.23"]
[EventType "swiss"]
[EventCountry "GEO"]
[SourceTitle "playchess.com"]
[Source "ChessBase"]
[SourceQuality "1"]
[TimeControl "5400+30"]

1. e4 {[%emt 0:00:31]} c5 {[%emt 0:00:21]} 2. Nc3 {[%emt 0:00:08]} Nc6 {[%emt 0:00:34]} 3. f4 {[%emt 0:00:08]} g6 {[%emt 0:00:38]} 4. Nf3 {[%emt 1:31:43]} Bg7 {[%emt 1:30:57]} 5. a3 {[%emt 0:00:30]} e6 {[%emt 0:00:30]} 6. b4 {[%emt 0:00:00]} d5 {[%emt 0:00:30]} 7. e5 {[%emt 0:01:00]} f6 {[%emt 0:00:30]} 8. Bb5 {[%emt 0:00:30]} (8. bxc5 $14 Nh6 9. d4) 8... Bd7 {[%emt 0:00:30]} 9. Bxc6 {[%emt 0:00:30]} Bxc6 {[%emt 0:00:30]} 10. d4 {[%emt 0:00:30]} cxd4 {[%emt 0:00:30]} 11. Qxd4 {[%emt 0:00:30]} (11. Ne2 $15) 11... Nh6 {[%emt 0:00:30]} 12. Ne2 {[%emt 0:00:30]} O-O {[%emt 0:00:30]} 13. Ng3 {[%emt 0:00:30]} Bb5 {[%emt 0:00:00]} 14. a4 {[%emt 0:00:30]} Bc4 $19 {[%emt 0:01:00]} 15. Bb2 {[%emt 0:00:00]} Rf7 {[%emt 0:00:30]} 16. Qd2 {[%emt 0:01:00]} Ng4 {[%emt 0:00:30]} 17. h3 {[%emt 0:00:30]} Nh6 {[%emt 0:00:30]} 18. Kf2 {[%emt 0:00:00]} Qc7 {[%emt 0:00:30]} 19. Rhe1 {[%emt 0:01:00]} Raf8 {[%emt 0:00:30]} 20. Kg1 {[%emt 0:00:00]} fxe5 {[%emt 0:00:30]} 21. Bxe5 {[%emt 0:00:00]} Bxe5 {[%emt 0:00:00]} 22. fxe5 {[%emt 0:00:00]} Nf5 {[%emt 0:01:00]} 23. Nxf5 {[%emt 0:00:00]} Rxf5 {[%emt 0:00:00]} 24. Qe3 {[%emt 0:02:30]} Qe7 {[%emt 0:01:00]} 25. c3 {[%emt 0:00:00]} b6 {[%emt 0:00:00]} 26. a5 bxa5 {[%emt 0:01:00]} 27. Rxa5 {[%emt 0:00:00]} a6 {[%emt 0:00:30]} 28. Nd4 {[%emt 0:02:00]} Rf4 {[%emt 0:00:30]} 29. Qg3 {[%emt 0:00:30]} Qf7 {[%emt 0:00:30]} 30. Nf3 {[%emt 0:00:30]} Bb5 {[%emt 0:00:30]} 31. Kh2 {[%emt 0:00:30]} Qd7 {[%emt 0:00:30]} 32. Nd4 {[%emt 0:00:00]} R8f7 {[%emt 0:00:30]} 33. Rea1 {[%emt 0:01:00]} Qe7 {[%emt 0:00:30]} 34. Rxa6 {[%emt 0:00:00]} Bxa6 {[%emt 0:00:00]} 35. Rxa6 {[%emt 0:01:00]} Qb7 {[%emt 0:00:26]} 36. Rxe6 {[%emt 0:00:00]} Qc8 {[%emt 0:01:04]} 37. Rc6 {[%emt 0:00:00]} Qe8 {[%emt 0:00:30]} 38. e6 {[%emt 0:01:30]} R7f6 {[%emt 0:00:30]} 39. b5 {[%emt 0:00:00]} h5 {[%emt 0:00:00]} 40. Rc7 {[%emt 0:00:00]} Qb8 {[%emt 0:00:28]} 41. b6 {[%emt 0:00:00]} h4 {[%emt 0:01:02]} 42. Qg5 {[%emt 0:02:00]} Qxb6 {[%emt 0:00:00]} 43. e7 {[%emt 0:00:00]} Re4 {[%emt 0:00:26]} 44. Qxd5+ {[%emt 0:01:00]} Kg7 {[%emt 0:00:32]} 45. e8=N+ {[%emt 0:00:00]} Kf8 {[%emt 0:00:24]} 46. Qxe4 {[%emt 0:00:00]} Rd6 {[%emt 0:00:32]} 47. Qe7+ {[%emt 0:01:30]} 1-0

[Event "FIDE World Cup O10-A 2024"]
[Site "Batumi"]
[Date "2024.06.26"]
[Round "4.2"]
[White "Shangin, Lev"]
[Black "Chakrabarty, Reyaansh"]
[Result "1/2-1/2"]
[ECO "D37"]
[WhiteElo "2031"]
[BlackElo "2185"]
[Annotator "RC"]
[PlyCount "105"]
[EventDate "2024.06.23"]
[EventType "swiss"]
[EventCountry "GEO"]
[SourceTitle "playchess.com"]
[Source "ChessBase"]
[SourceQuality "1"]
[TimeControl "5400+30"]

1. d4 {[%emt 0:00:30]} d5 {[%emt 0:00:04]} 2. c4 {[%emt 0:00:27]} e6 {[%emt 0:00:13]} 3. Nf3 {[%emt 0:00:23]} Nf6 {[%emt 0:00:02]} 4. Nc3 {[%emt 0:00:31]} h6 {[%emt 0:00:03]} 5. Bf4 {[%emt 0:02:04]} Bd6 {[%emt 0:00:25]} 6. Bxd6 {[%emt 0:01:18]} Qxd6 {[%emt 0:00:04]} 7. e3 {[%emt 0:00:55]} O-O {[%emt 0:00:40]} 8. Rc1 {[%emt 0:02:27]} b6 {[%emt 0:10:08]} 9. cxd5 {[%emt 0:03:02]} Nxd5 {[%emt 0:00:25]} 10. Nxd5 {[%emt 0:02:15]} exd5 {[%emt 0:00:13]} 11. Qc2 {[%emt 0:02:30]} c6 {[%emt 0:00:13]} 12. Bd3 {[%emt 0:01:25]} Be6 {[%emt 0:00:24]} 13. O-O {[%emt 0:00:46]} Rc8 {[%emt 0:00:25]} 14. h3 {[%emt 0:06:51]} Nd7 {[%emt 0:08:08]} 15. Qe2 {[%emt 0:06:01]} c5 {[%emt 0:14:04]} 16. dxc5 {[%emt 0:01:59]} bxc5 {[%emt 0:00:14]} 17. Rfd1 {[%emt 0:04:12]} Ne5 {[%emt 0:14:05]} 18. Bb1 {[%emt 0:09:03]} Nxf3+ {[%emt 0:00:59]} 19. Qxf3 {[%emt 0:00:01]} Qe5 {[%emt 0:00:31]} 20. Rd2 {[%emt 0:02:04]} Rab8 {[%emt 0:00:32]} 21. Qe2 {[%emt 0:03:25]} Qf6 {[%emt 0:05:13]} 22. Rdc2 {[%emt 0:06:24]} Bf5 {[%emt 0:01:28]} 23. Rd2 {[%emt 0:02:36]} Be6 {[%emt 0:00:12]} 24. Rdc2 {[%emt 0:01:02]} a5 {[%emt 0:06:16]} 25. e4 {[%emt 0:08:49]} dxe4 {[%emt 0:03:58]} 26. Rxc5 {[%emt 0:00:26]} Rxc5 {[%emt 0:00:13]} 27. Rxc5 {[%emt 0:32:34]} Qxb2 {[%emt 0:03:44]} 28. Qxb2 {[%emt 0:00:00]} Rxb2 {[%emt 0:00:11]} 29. Bxe4 {[%emt 0:00:00]} Rxa2 {[%emt 0:00:41]} 30. Bd5 {[%emt 0:00:00]} Bxd5 {[%emt 0:01:50]} 31. Rxd5 {[%emt 0:00:00]} Ra1+ {[%emt 0:01:18]} 32. Kh2 {[%emt 0:00:00]} Kh7 {[%emt 0:00:07]} 33. g4 {[%emt 0:00:00]} g5 {[%emt 0:01:38]} 34. Kg2 {[%emt 0:00:00]} a4 {[%emt 0:00:42]} 35. Ra5 {[%emt 0:00:00]} Ra3 {[%emt 0:02:32]} 36. Ra6 {[%emt 0:00:00]} Kg7 {[%emt 0:00:24]} 37. Ra7 {[%emt 0:00:00]} Kf6 {[%emt 0:02:24]} 38. Ra6+ {[%emt 0:00:00]} Kg7 {[%emt 0:00:04]} 39. Ra7 {[%emt 0:00:00]} Kg6 {[%emt 0:03:18]} 40. Ra6+ {[%emt 0:00:00]} f6 {[%emt 0:00:05]} 41. Ra7 {[%emt 0:00:00]} h5 {[%emt 0:01:04]} 42. Ra6 {[%emt 0:00:00]} hxg4 {[%emt 0:03:00]} 43. hxg4 {[%emt 0:00:00]} Kf7 {[%emt 0:00:16]} 44. Kh2 {[%emt 0:00:00]} Ra2 {[%emt 0:00:41]} 45. Kg2 {[%emt 0:00:00]} Ke7 {[%emt 0:01:25]} 46. Kg3 {[%emt 0:00:00]} a3 {[%emt 0:01:02]} 47. Kg2 {[%emt 0:00:00]} Ra1 {[%emt 0:00:37]} 48. Kf3 {[%emt 0:00:00]} a2 {[%emt 0:01:15]} 49. Kg2 {[%emt 0:00:00]} Kd7 {[%emt 0:00:08]} 50. Ra8 {[%emt 0:00:00]} Kc6 {[%emt 0:00:12]} 51. Kh2 {[%emt 0:00:00]} Kb5 {[%emt 0:00:37]} 52. Kg2 {[%emt 0:00:00]} Kc4 {[%emt 0:00:34]} 53. Ra7 {[%emt 0:00:00]} 1/2-1/2

[Event "FIDE World Cup O10-A 2024"]
[Site "Batumi"]
[Date "2024.06.26"]
[Round "4.3"]
[White "Ashwath Kaushik"]
[Black "Safin Safarullakhan"]
[Result "0-1"]
[ECO "B76"]
[WhiteElo "2029"]
[BlackElo "1879"]
[Annotator "NA RC"]
[PlyCount "130"]
[EventDate "2024.06.23"]
[EventType "swiss"]
[EventCountry "GEO"]
[SourceTitle "playchess.com"]
[Source "ChessBase"]
[SourceQuality "1"]
[TimeControl "5400+30"]

1. e4 {[%emt 0:00:17]} c5 {[%emt 0:00:13]} 2. Nf3 {[%emt 0:01:01]} d6 {[%emt 0:00:16]} 3. d4 {[%emt 0:00:09]} cxd4 {[%emt 0:00:11]} 4. Nxd4 {[%emt 0:00:09]} Nf6 {[%emt 0:00:15]} 5. Nc3 {[%emt 0:00:10]} g6 {[%emt 0:00:23]} 6. Be3 {[%emt 0:00:51]} Bg7 {[%emt 0:00:18]} 7. f3 {[%emt 0:00:05]} O-O {[%emt 0:00:35]} 8. Qd2 {[%emt 0:00:21]} Nc6 {[%emt 0:00:55]} 9. O-O-O {[%emt 0:01:05]} d5 {[%emt 0:00:33]} 10. exd5 {[%emt 0:00:12]} Nxd5 {[%emt 0:00:31]} 11. Nxc6 {[%emt 0:02:02]} bxc6 {[%emt 0:00:28]} 12. Bd4 {[%emt 0:01:14]} e5 {[%emt 0:00:47]} 13. Bc5 {[%emt 0:00:39]} Re8 {[%emt 0:00:52]} 14. Ne4 {[%emt 0:03:26] B76: Sicilian Dragon: Yugoslav Attack, 9 g4 and 9 0-0-0.} Qc7 {[%emt 0:00:59] The main line 14...Qc7 scores better than 14...Be6.} 15. g4 {[%emt 0:11:09]} Be6 {[%emt 0:08:32]} 16. Bc4 {[%emt 0:06:24]} Nf4 {[%emt 0:02:28] [#]} 17. Bxe6 $1 {[%emt 0:03:01]} Nxe6 {[%emt 0:01:13] [#]} 18. Ba3 {[%emt 0:06:50]} ({Better is} 18. Bd6 $1 $16 {[%cal Rd6c7]} Qb6 19. Kb1) 18... Rad8 $146 {[%emt 0:09:47]} ({Predecessor:} 18... Red8 19. Qf2 Qb6 20. h4 Rd5 21. c3 Nf4 22. Qxb6 axb6 23. Kc2 Ng2 24. Rd3 Rad8 25. Rxd5 cxd5 {½-½ Valko,K (2241)-Torma,R (2222) HUN-chT 0405 2004 (11)}) 19. Qf2 {[%emt 0:02:00]} Rd5 {[%emt 0:06:18]} 20. h4 {[%emt 0:10:17]} Red8 {[%emt 0:01:49]} 21. Rde1 {[%emt 0:07:34]} Nd4 {[%emt 0:04:34]} (21... f5 $1 $15 {stays ahead.} 22. gxf5 gxf5) 22. h5 {[%emt 0:04:28]} Ra5 {[%emt 0:13:36]} 23. hxg6 $16 {[%emt 0:12:09]} fxg6 {[%emt 0:03:50]} 24. Qh4 {[%emt 0:04:42]} Rxa3 {[%emt 0:14:36]} 25. bxa3 {[%emt 0:03:07]} Qa5 {[%emt 0:05:18]} 26. Qe7 {[%emt 0:03:07]} c5 {[%emt 0:09:21]} 27. Re3 {[%emt 0:04:44]} Rf8 {[%emt 0:06:33]} 28. Ng5 {[%emt 0:02:44]} Qa4 {[%emt 0:03:50]} 29. Qxc5 {[%emt 0:06:11]} h6 {[%emt 0:02:00]} 30. Ne4 {[%emt 0:03:21]} Qa6 {[%emt 0:01:04]} 31. Nd6 {[%emt 0:01:10]} Kh7 {[%emt 0:01:35]} 32. c3 {[%emt 0:01:19]} Ne6 {[%emt 0:01:02]} 33. Qb4 {[%emt 0:00:27]} Nf4 {[%emt 0:00:23]} 34. Rd1 {[%emt 0:00:19]} Rd8 {[%emt 0:00:50]} 35. c4 {[%emt 0:00:24]} Ne6 {[%emt 0:00:54]} 36. Ne4 {[%emt 0:00:28]} Nd4 {[%emt 0:00:16]} 37. Red3 {[%emt 0:00:35]} Bf8 {[%emt 0:00:29]} 38. c5 {[%emt 0:00:33]} Ne2+ {[%emt 0:00:26]} 39. Kc2 {[%emt 0:00:07]} Nd4+ {[%emt 0:00:31]} 40. Kb1 {[%emt 0:00:29]} Rd7 {[%emt 0:00:39]} 41. Qc3 {[%emt 0:01:00]} Bg7 {[%emt 0:00:48]} 42. Nd6 {[%emt 0:00:15]} e4 {[%emt 0:00:40]} 43. Rxd4 {[%emt 0:00:06]} Bxd4 {[%emt 0:00:42]} 44. Rxd4 {[%emt 0:00:26]} Qf1+ {[%emt 0:00:31]} 45. Kb2 {[%emt 0:00:11]} exf3 {[%emt 0:00:12]} 46. Qd3 {[%emt 0:00:51]} Qg2+ {[%emt 0:00:09]} 47. Qc2 {[%emt 0:00:30]} f2 {[%emt 0:01:06]} 48. Rd2 {[%emt 0:01:18]} Rb7+ {[%emt 0:00:17]} 49. Kc3 {[%emt 0:00:31]} Qf3+ {[%emt 0:00:22]} 50. Qd3 {[%emt 0:00:29]} f1=Q {[%emt 0:00:49]} 51. Nxb7 {[%emt 0:00:19]} Q1xd3+ {[%emt 0:00:17]} 52. Rxd3 {[%emt 0:00:05]} Qxb7 {[%emt 0:00:05]} 53. Rd6 {[%emt 0:00:18]} Qc7 {[%emt 0:00:41]} 54. Kd4 {[%emt 0:00:05]} h5 {[%emt 0:00:16]} 55. gxh5 {[%emt 0:00:46]} gxh5 {[%emt 0:00:05]} 56. Kd5 {[%emt 0:00:07]} h4 {[%emt 0:00:54]} 57. c6 {[%emt 0:00:10]} Qa5+ {[%emt 0:00:27]} 58. Ke6 {[%emt 0:00:15]} h3 {[%emt 0:00:58]} 59. Rd7+ {[%emt 0:00:09]} Kg6 {[%emt 0:00:24]} 60. c7 {[%emt 0:00:21]} Qc5 {[%emt 0:00:18]} 61. Re7 {[%emt 0:00:28]} h2 {[%emt 0:00:18]} 62. Kd7 {[%emt 0:00:35]} h1=Q {[%emt 0:00:27]} 63. Re6+ {[%emt 0:00:11]} Kf7 {[%emt 0:00:26]} 64. c8=Q {[%emt 0:03:44]} Qhd5+ {[%emt 0:00:38]} 65. Rd6 {[%emt 0:00:00]} Qdxd6# {[%emt 0:00:20]} 0-1

[Event "FIDE World Cup O10-A 2024"]
[Site "Batumi"]
[Date "2024.06.26"]
[Round "4.4"]
[White "Mrozowski, Nikodem"]
[Black "Jakhaia, Andria"]
[Result "1-0"]
[ECO "B92"]
[WhiteElo "1776"]
[BlackElo "1652"]
[Annotator "NA RC"]
[PlyCount "70"]
[EventDate "2024.06.23"]
[EventType "swiss"]
[EventCountry "GEO"]
[SourceTitle "playchess.com"]
[Source "ChessBase"]
[SourceQuality "1"]
[TimeControl "5400+30"]

1. e4 {[%emt 0:00:26]} c5 {[%emt 0:00:29]} 2. Nf3 {[%emt 0:00:23]} d6 {[%emt 0:00:31]} 3. d4 {[%emt 0:00:41]} cxd4 {[%emt 0:02:01]} 4. Nxd4 {[%emt 0:00:31]} Nf6 {[%emt 0:00:09]} 5. Nc3 {[%emt 0:01:35]} a6 {[%emt 0:00:19]} 6. Be2 {[%emt 0:00:26]} e5 {[%emt 0:00:12]} 7. Nb3 {[%emt 0:00:14]} Be6 {[%emt 0:00:12]} 8. O-O {[%emt 0:00:42]} Be7 {[%emt 0:00:30]} 9. Kh1 {[%emt 0:02:02]} Nbd7 {[%emt 0:00:30]} 10. f4 {[%emt 0:03:17]} exf4 {[%emt 0:22:14]} 11. Bxf4 {[%emt 0:01:26]} Ne5 {[%emt 0:02:50]} 12. Qe1 {[%emt 0:03:50]} O-O {[%emt 0:02:35]} 13. Rd1 {[%emt 0:01:32]} Qc7 {[%emt 0:00:48]} 14. Qg3 {[%emt 0:00:25]} Rfd8 {[%emt 0:03:06]} 15. Nd4 {[%emt 0:09:48]} Ng6 {[%emt 0:15:46]} 16. Bg5 {[%emt 0:07:21]} Rd7 {[%emt 0:12:51]} 17. h4 {[%emt 0:09:47]} Qd8 {[%emt 0:01:49]} 18. h5 {[%emt 0:01:58]} Nxh5 {[%emt 0:03:19]} 19. Bxh5 {[%emt 0:00:07]} Bxg5 {[%emt 0:00:16]} 20. Bxg6 {[%emt 0:04:02]} hxg6 {[%emt 0:00:12]} 21. Nxe6 {[%emt 0:00:32]} fxe6 {[%emt 0:00:09]} 22. e5 {[%emt 0:02:11]} d5 {[%emt 0:00:29]} 23. Ne2 {[%emt 0:02:28]} Rf7 {[%emt 0:17:33]} 24. Rxf7 {[%emt 0:04:16]} Kxf7 {[%emt 0:00:03]} 25. Rf1+ {[%emt 0:00:04]} Kg8 {[%emt 0:09:51]} 26. Nd4 {[%emt 0:00:06]} Qe7 {[%emt 0:01:05]} 27. Qg4 {[%emt 0:01:02]} Re8 {[%emt 0:00:28]} 28. Rf3 {[%emt 0:00:44]} Kh7 {[%emt 0:01:46]} 29. Rg3 {[%emt 0:00:21]} Bh6 {[%emt 0:00:28]} 30. Qxg6+ {[%emt 0:00:32]} Kh8 {[%emt 0:00:11]} 31. Kg1 {[%emt 0:02:43]} Qd7 {[%emt 0:01:48]} 32. Rh3 {[%emt 0:00:38]} Qe7 {[%emt 0:00:29]} 33. g4 {[%emt 0:00:16]} Qd7 {[%emt 0:01:15]} 34. g5 {[%emt 0:00:06]} Qe7 {[%emt 0:00:45]} 35. gxh6 {[%emt 0:00:12]} Kg8 {[%emt 0:01:01]} 1-0

[Event "FIDE World Cup O10-A 2024"]
[Site "Batumi"]
[Date "2024.06.26"]
[Round "4.5"]
[White "Ismailov, Omarbek"]
[Black "Ramesan, Raunak Amit"]
[Result "0-1"]
[ECO "D00"]
[WhiteElo "1716"]
[BlackElo "1772"]
[Annotator "NA RC"]
[PlyCount "114"]
[EventDate "2024.06.23"]
[EventType "swiss"]
[EventCountry "GEO"]
[SourceTitle "playchess.com"]
[Source "ChessBase"]
[SourceQuality "1"]
[TimeControl "5400+30"]

1. d4 {[%emt 0:00:05]} d5 {[%emt 0:00:06]} 2. Bf4 {[%emt 0:00:07]} Nf6 {[%emt 0:00:17]} 3. e3 {[%emt 0:00:34]} e6 {[%emt 0:00:17]} 4. c3 {[%emt 0:00:28]} c5 {[%emt 0:00:24]} 5. Nd2 {[%emt 0:01:51]} Bd6 {[%emt 0:00:23]} 6. Bg5 {[%emt 0:01:22]} Nbd7 {[%emt 0:03:01]} 7. Ngf3 {[%emt 0:04:23]} Qc7 {[%emt 0:07:20]} 8. Bd3 {[%emt 0:03:49]} b6 {[%emt 0:06:37]} 9. O-O {[%emt 0:22:10]} Bb7 {[%emt 0:03:47]} 10. Re1 {[%emt 0:00:44]} Ne4 {[%emt 0:03:12]} 11. Bh4 {[%emt 0:00:33]} O-O {[%emt 0:04:55]} 12. Qc2 {[%emt 0:09:20]} f5 {[%emt 0:04:09]} 13. c4 {[%emt 0:07:18]} Nxd2 {[%emt 0:04:44]} 14. Qxd2 {[%emt 0:04:49]} cxd4 {[%emt 0:04:57]} 15. Bf1 {[%emt 0:06:05]} dxc4 {[%emt 0:01:43]} 16. Nxd4 {[%emt 0:00:53]} Bxh2+ {[%emt 0:02:30]} 17. Kh1 {[%emt 0:00:15]} Bd5 {[%emt 0:11:51]} 18. f4 {[%emt 0:00:48]} g5 {[%emt 0:04:27]} 19. Bxg5 {[%emt 0:02:55]} Bg3 {[%emt 0:00:41]} 20. Red1 {[%emt 0:00:35]} Nc5 {[%emt 0:01:34]} 21. Nb5 {[%emt 0:04:56]} Qf7 {[%emt 0:00:51]} 22. Qe2 {[%emt 0:03:17]} h6 {[%emt 0:02:16]} 23. Nd6 {[%emt 0:06:34]} Qg6 {[%emt 0:02:58]} 24. Be7 {[%emt 0:01:57]} Nd3 {[%emt 0:07:01]} 25. Bxf8 {[%emt 0:05:16]} Nf2+ {[%emt 0:00:39]} 26. Kg1 {[%emt 0:00:15]} Ng4 {[%emt 0:01:06]} 27. Nxf5 {[%emt 0:04:52]} exf5 {[%emt 0:04:39]} 28. Rxd5 {[%emt 0:00:51]} Qh5 {[%emt 0:00:59]} 29. Qxg4+ {[%emt 0:01:13]} Qxg4 {[%emt 0:00:10]} 30. Bb4 {[%emt 0:01:13]} Rc8 {[%emt 0:01:20]} 31. Rad1 {[%emt 0:01:56]} Qh4 {[%emt 0:01:09]} 32. Bxc4 {[%emt 0:00:13]} Qh2+ {[%emt 0:00:55]} 33. Kf1 {[%emt 0:00:09]} Qh1+ {[%emt 0:00:09]} 34. Ke2 {[%emt 0:00:16]} Qxg2+ {[%emt 0:00:10]} 35. Kd3 {[%emt 0:00:10]} Qe4+ {[%emt 0:00:09]} 36. Ke2 {[%emt 0:00:53]} Qxc4+ {[%emt 0:01:12]} 37. Kf3 {[%emt 0:00:08]} Qxb4 {[%emt 0:00:18]} 38. Kxg3 {[%emt 0:00:07]} Qe4 {[%emt 0:16:34]} 39. Re5 {[%emt 0:00:40]} Qc2 {[%emt 0:00:00]} 40. Rg1 {[%emt 0:00:20]} Rc7 {[%emt 0:00:00]} 41. Re8+ {[%emt 0:02:19]} Kh7 {[%emt 0:00:00]} 42. Kh3 {[%emt 0:01:14]} Rg7 {[%emt 0:00:00]} 43. Rxg7+ {[%emt 0:00:10]} Kxg7 {[%emt 0:00:00]} 44. Re7+ {[%emt 0:00:14]} Kf6 {[%emt 0:00:00]} 45. Rxa7 {[%emt 0:00:13]} Qxb2 {[%emt 0:00:00]} 46. Ra6 {[%emt 0:00:22]} Ke6 {[%emt 0:00:00]} 47. a4 {[%emt 0:00:18]} Kd5 {[%emt 0:00:00]} 48. a5 {[%emt 0:00:19]} bxa5 {[%emt 0:00:00]} 49. Rxa5+ {[%emt 0:00:27]} Ke4 {[%emt 0:00:00]} 50. Kg3 {[%emt 0:00:05]} Kxe3 {[%emt 0:00:00]} 51. Re5+ {[%emt 0:00:09]} Kd4 {[%emt 0:00:00]} 52. Rxf5 {[%emt 0:00:44]} Qb3+ {[%emt 0:00:00]} 53. Kh4 {[%emt 0:00:34]} Qe6 {[%emt 0:00:00]} 54. Re5 {[%emt 0:01:19]} Qg6 {[%emt 0:08:00]} 55. Re1 {[%emt 0:01:06]} h5 {[%emt 0:00:00]} 56. Kh3 {[%emt 0:01:05]} Qg4+ {[%emt 0:00:00]} 57. Kh2 {[%emt 0:00:08]} Qh4+ {[%emt 0:01:30]} 0-1

[Event "FIDE World Cup O10-A 2024"]
[Site "Batumi"]
[Date "2024.06.26"]
[Round "4.6"]
[White "Aryan Mehta"]
[Black "Guntaka, Aayansh"]
[Result "1/2-1/2"]
[ECO "D31"]
[WhiteElo "1863"]
[BlackElo "1872"]
[Annotator "NA RC"]
[PlyCount "82"]
[EventDate "2024.06.23"]
[EventType "swiss"]
[EventCountry "GEO"]
[SourceTitle "playchess.com"]
[Source "ChessBase"]
[SourceQuality "1"]
[TimeControl "5400+30"]

1. d4 {[%emt 0:00:04]} d5 {[%emt 0:00:14]} 2. c4 {[%emt 0:00:08]} e6 {[%emt 0:00:11]} 3. Nc3 {[%emt 0:00:11]} c6 {[%emt 0:00:07]} 4. cxd5 {[%emt 1:32:07]} exd5 {[%emt 0:00:10]} 5. Nf3 {[%emt 0:00:00]} Bd6 {[%emt 0:00:47]} 6. Bg5 {[%emt 0:00:00]} Ne7 {[%emt 0:02:10]} 7. e3 {[%emt 0:00:00]} Bf5 {[%emt 0:01:10]} 8. Bd3 {[%emt 0:00:00] D31: Queen's Gambit Declined: Semi-Slav without ...Nf6 (+ Marshall Gambit and Noteboom) and Exchange Variation lines without ...Nf6.} Bxd3 {[%emt 0:01:34]} 9. Qxd3 {[%emt 0:00:00]} O-O {[%emt 0:01:00]} 10. O-O {[%emt 0:00:00]} f6 {[%emt 0:04:26]} 11. Bh4 {[%emt 0:00:00]} Na6 {[%emt 0:06:31]} 12. a3 {[%emt 0:00:00]} Ng6 {[%emt 0:04:56]} 13. Bg3 {[%emt 0:00:00]} Nc7 {[%emt 0:04:45]} 14. b4 {[%emt 0:00:00]} Bxg3 {[%emt 0:04:58]} 15. hxg3 {[%emt 0:00:00]} a6 {[%emt 0:00:59]} 16. Na4 {[%emt 0:00:00]} Qd6 {[%emt 0:07:36]} 17. Nc5 {[%emt 0:00:00]} Rab8 {[%emt 0:05:00]} 18. Rac1 {[%emt 0:00:00]} Ne6 {[%emt 0:04:42]} 19. Nd2 {[%emt 0:00:00]} Nxc5 {[%emt 0:04:06]} 20. bxc5 {[%emt 0:00:00]} Qc7 {[%emt 0:00:47]} 21. Rb1 {[%emt 0:00:00]} Ne7 {[%emt 0:02:45]} 22. Rb2 {[%emt 0:00:00]} b5 {[%emt 0:00:58]} 23. cxb6 {[%emt 0:00:00]} Rxb6 {[%emt 0:00:10]} 24. Rxb6 {[%emt 0:00:00]} Qxb6 {[%emt 0:00:35]} 25. Rb1 $16 {[%emt 0:00:00]} Qa5 {[%emt 0:03:14]} 26. Rb7 {[%emt 0:00:00]} Nc8 {[%emt 0:01:31]} 27. Qc2 {[%emt 0:00:00]} Nd6 {[%emt 0:02:58]} 28. Rd7 {[%emt 0:00:00]} Nb5 {[%emt 0:01:30]} 29. Nf3 {[%emt 0:00:00]} Nc3 {[%emt 0:19:44]} 30. Qb2 {[%emt 0:00:00]} Nb5 {[%emt 0:01:37]} 31. Qc2 {[%emt 0:00:00]} Nc3 {[%emt 0:00:47]} 32. Qf5 {[%emt 0:00:00]} Qxa3 {[%emt 0:02:57]} 33. Qg4 {[%emt 0:01:16]} Rf7 {[%emt 0:01:24]} 34. Rd8+ {[%emt 0:00:20]} Rf8 {[%emt 0:00:29]} 35. Qe6+ {[%emt 0:00:15]} Kh8 {[%emt 0:00:11]} 36. Rxf8+ {[%emt 0:00:35]} Qxf8 {[%emt 0:00:16]} 37. Qxc6 {[%emt 0:00:10]} Ne4 {[%emt 0:01:37]} 38. Qxa6 {[%emt 0:03:29]} h6 {[%emt 0:01:30]} 39. Qe6 {[%emt 0:01:44]} Qa8 {[%emt 0:02:46]} 40. Ne1 {[%emt 0:05:39]} Qa1 {[%emt 0:00:34]} 41. Kf1 {[%emt 0:00:45]} Qd1 {[%emt 0:00:16]} 1/2-1/2